bitfinex/quotes_BTCUSD_20251202
["timestamp","ask_amount","ask_price","bid_price","bid_amount"]
[1764639562946,0.00174943,86820.0,86819.0,0.2075952]
[1764639563154,0.23211109,86820.0,86819.0,0.1961]
[1764639563629,0.00174943,86820.0,86819.0,0.1961]
[1764639564063,0.23211109,86820.0,86819.0,0.1961]
[1764639564265,0.00174943,86820.0,86819.0,0.42646432]
[1764639564469,0.00174943,86820.0,86819.0,0.43795952]
[1764639565074,0.00174943,86820.0,86819.0,0.2075952]
[1764639565305,0.00174943,86820.0,86819.0,0.1961]
[1764639565498,0.00174943,86820.0,86819.0,0.2075952]
[1764639568538,0.00174943,86820.0,86819.0,0.1961]
[1764639570019,0.23211109,86820.0,86819.0,0.1961]
[1764639571652,0.23211109,86820.0,86819.0,0.03973]
[1764639571866,0.23037493,86815.0,86814.0,0.04064]
[1764639572538,0.23398085,86815.0,86814.0,0.04064]
[1764639572776,0.27985294,86815.0,86814.0,0.04064]
[1764639572955,0.27985294,86815.0,86814.0,0.09263]
[1764639573161,0.23398085,86815.0,86814.0,0.09263]
[1764639573370,0.00174943,86820.0,86814.0,0.09263]
[1764639573371,0.00174943,86820.0,86814.0,0.17077]
[1764639573594,0.00360582,86819.0,86818.0,0.0114952]
[1764639573769,0.00174943,86820.0,86818.0,0.0114952]
[1764639573976,0.00174943,86820.0,86819.0,0.1416252]
[1764639574172,0.23211109,86820.0,86819.0,0.13013]
[1764639574623,0.23211109,86820.0,86819.0,0.05199]
[1764639574825,0.05443799,86820.0,86819.0,0.05199]
[1764639575385,0.05443799,86820.0,86819.0,0.12943]
[1764639575606,0.05443799,86820.0,86814.0,0.04064]
[1764639575607,0.23037493,86815.0,86814.0,0.04064]
[1764639575784,0.27624702,86815.0,86814.0,0.04064]
[1764639577126,0.27624702,86815.0,86814.0,0.09223]
[1764639577532,0.23037493,86815.0,86814.0,0.09223]
[1764639577886,0.23037493,86815.0,86814.0,0.16967]
[1764639578451,0.23037493,86815.0,86814.0,0.09223]
[1764639579638,0.23037493,86815.0,86814.0,0.16967]
[1764639580564,0.23037493,86815.0,86814.0,0.04064]
[1764639581081,0.23037493,86815.0,86814.0,0.09223]
[1764639581302,0.23398077,86815.0,86814.0,0.09223]
[1764639581651,0.23398077,86815.0,86814.0,0.16967]
[1764639581860,0.24189054,86817.0,86814.0,0.16967]
[1764639582059,0.23034199,86828.0,86822.0,0.01151781]
[1764639582243,9.335e-05,86827.0,86826.0,0.32113574]
[1764639582441,9.335e-05,86827.0,86826.0,0.33263094]
[1764639582673,9.335e-05,86827.0,86826.0,0.41007094]
[1764639583079,9.335e-05,86827.0,86826.0,0.1797252]
[1764639585087,9.335e-05,86827.0,86826.0,0.16823]
[1764639589569,9.335e-05,86827.0,86826.0,0.09079]
[1764639590116,9.335e-05,86827.0,86826.0,0.16823]
[1764639590402,9.335e-05,86827.0,86826.0,0.09079]
[1764639590606,0.23036166,86820.0,86819.0,0.07770309]
[1764639590813,0.55696732,86820.0,86819.0,0.00026309]
[1764639591104,0.58183357,86820.0,86819.0,0.05185309]
[1764639591483,0.23396732,86820.0,86819.0,0.12929309]
[1764639591683,0.23036166,86820.0,86819.0,0.12929309]
[1764639592306,0.23036166,86820.0,86819.0,0.05185309]
[1764639592506,0.23396742,86820.0,86819.0,0.12929309]
[1764639593142,0.23396742,86820.0,86819.0,0.13029309]
[1764639593337,0.23396742,86820.0,86819.0,0.05285309]
[1764639593544,0.23396742,86820.0,86819.0,0.05185309]
[1764639593844,0.23496742,86820.0,86819.0,0.05185309]
[1764639594746,0.23136166,86820.0,86819.0,0.05185309]
[1764639594956,0.23136166,86820.0,86819.0,0.00026309]
[1764639595481,0.23136166,86820.0,86819.0,0.05185309]
[1764639595957,0.23496746,86820.0,86819.0,0.05185309]
[1764639598031,0.23496746,86820.0,86819.0,0.00026309]
[1764639600450,0.25983466,86820.0,86819.0,0.00026309]
[1764639600669,0.84258361,86820.0,86819.0,1e-08]
[1764639600883,0.55342005,86798.0,86797.0,0.0392]
[1764639601100,0.58189305,86798.0,86797.0,0.0392]
[1764639601293,0.5818946,86798.0,86797.0,0.03989573]
[1764639601805,0.5818946,86798.0,86797.0,0.09148573]
[1764639602406,0.55702585,86798.0,86797.0,0.09148573]
[1764639603149,0.55802585,86798.0,86797.0,0.09148573]
[1764639603327,0.55802585,86798.0,86797.0,0.03989573]
[1764639603550,0.55802585,86798.0,86797.0,0.00069573]
[1764639605753,0.55442005,86798.0,86797.0,0.00069573]
[1764639608278,0.55442005,86798.0,86797.0,0.09752573]
[1764639608470,0.55442005,86798.0,86797.0,0.17772573]
[1764639610244,0.55342005,86798.0,86797.0,0.17772573]
[1764639610480,0.55342005,86798.0,86797.0,0.09752573]
[1764639611207,0.63338005,86798.0,86797.0,0.00069573]
[1764639611430,0.67327164,86798.0,86797.0,0.00069573]
[1764639611629,0.67327164,86798.0,86797.0,0.00469573]
[1764639612028,0.58181164,86798.0,86797.0,0.00469573]
[1764639612406,0.55342005,86798.0,86797.0,0.13598573]
[1764639612559,0.23042005,86798.0,86797.0,0.13598573]
[1764639612743,0.23042005,86798.0,86797.0,0.13698573]
[1764639612942,0.23042005,86798.0,86797.0,0.14748093]
[1764639613151,0.23042005,86798.0,86797.0,0.13598573]
[1764639613348,0.23042005,86798.0,86797.0,0.13898573]
[1764639613743,0.23042005,86798.0,86797.0,0.00369573]
[1764639614141,0.2419378,86800.0,86797.0,0.00369573]
[1764639614394,0.23042005,86798.0,86797.0,0.003]
[1764639614600,0.23043598,86792.0,86791.0,0.04174]
[1764639614801,0.23043598,86792.0,86791.0,0.04178445]
[1764639615043,0.23043598,86792.0,86791.0,0.17707445]
[1764639615910,0.01152113,86797.0,86791.0,0.17707445]
[1764639616120,0.01152153,86794.0,86792.0,0.0802]
[1764639616496,0.24195428,86794.0,86793.0,0.05509]
[1764639617197,0.24195428,86794.0,86793.0,0.13529]
[1764639617432,0.01152113,86797.0,86793.0,0.13529]
[1764639617634,0.01152126,86796.0,86794.0,0.0802]
[1764639618283,0.01152126,86796.0,86795.0,0.05509]
[1764639618913,0.01152126,86796.0,86795.0,0.13529]
[1764639619674,0.23039513,86808.0,86798.0,0.011521]
[1764639619675,0.2419182,86807.0,86798.0,0.011521]
[1764639619879,0.2419182,86807.0,86796.0,0.23042536]
[1764639619880,0.01152047,86802.0,86800.0,0.0114952]
[1764639620089,0.24193141,86802.0,86800.0,0.0114952]
[1764639620292,0.24193141,86802.0,86801.0,0.0802]
[1764639620494,0.24193141,86802.0,86801.0,0.1358592]
[1764639621708,0.01152047,86802.0,86801.0,0.1358592]
[1764639622306,0.01152047,86802.0,86801.0,0.1775992]
[1764639622716,0.01152047,86802.0,86801.0,0.1825992]
[1764639626526,0.23040617,86804.0,86801.0,0.1825992]
[1764639626729,0.23039018,86810.0,86803.0,0.05509]
[1764639626874,0.24192125,86806.0,86803.0,0.00050594]
[1764639627076,0.24192125,86806.0,86801.0,0.0582606]
[1764639627077,0.01151834,86818.0,86813.0,0.01151901]
[1764639627335,0.01151848,86817.0,86814.0,0.01824]
[1764639627493,0.24188235,86820.0,86819.0,0.0114952]
[1764639627703,0.24188235,86820.0,86814.0,0.09844]
[1764639627704,0.01151848,86817.0,86814.0,0.01824]
[1764639627902,0.01151848,86817.0,86816.0,0.0114952]
[1764639628095,0.01151848,86817.0,86816.0,0.1083252]
[1764639628323,0.2418881,86817.0,86816.0,0.1083252]
[1764639628517,0.2418881,86817.0,86816.0,0.1885252]
[1764639628856,0.24193698,86817.0,86816.0,0.1885252]
[1764639628996,0.24193698,86817.0,86816.0,0.17703]
[1764639629401,0.01156736,86817.0,86816.0,0.18303]
[1764639630249,0.01156736,86817.0,86816.0,0.18403]
[1764639631306,4.888e-05,86817.0,86816.0,0.18403]
[1764639631730,4.888e-05,86817.0,86816.0,0.1955252]
[1764639631938,0.0004,86830.0,86816.0,0.1955252]
[1764639631939,0.0004,86830.0,86829.0,0.23033779]
[1764639632165,0.24180222,86848.0,86837.0,0.01151582]
[1764639632381,0.04587209,86856.0,86837.0,0.01151582]
[1764639632382,0.00044885,86840.0,86839.0,0.32322126]
[1764639632586,4.885e-05,86840.0,86839.0,0.35295646]
[1764639632805,4.885e-05,86840.0,86839.0,0.43206646]
[1764639633140,0.04587209,86856.0,86839.0,0.43206646]
[1764639633350,1.16129169,86890.0,86857.0,0.23026133]
[1764639633351,0.0004,86870.0,86857.0,0.23026133]
[1764639633576,0.0004,86870.0,86856.0,0.0115133]
[1764639633577,0.01151185,86867.0,86858.0,0.06964]
[1764639633803,0.04587209,86867.0,86858.0,0.29990088]
[1764639633998,0.04587209,86867.0,86858.0,0.39050608]
[1764639634519,0.01151211,86865.0,86858.0,0.39050608]
[1764639634656,0.01151211,86865.0,86858.0,0.1602452]
[1764639634856,0.01151211,86865.0,86858.0,0.14875]
[1764639634857,0.01151264,86861.0,86858.0,0.14875]
[1764639635592,0.23025209,86862.0,86858.0,0.14975]
[1764639635788,0.01151264,86861.0,86858.0,0.14975]
[1764639636118,0.01151264,86861.0,86858.0,0.15075]
[1764639636430,0.01151264,86861.0,86858.0,0.14875]
[1764639636599,0.01151264,86861.0,86858.0,0.14975]
[1764639638971,0.00174838,86859.0,86858.0,0.14975]
[1764639639388,0.00174838,86859.0,86858.0,0.14875]
[1764639641356,0.00174838,86859.0,86858.0,0.37901088]
[1764639641601,0.00174838,86859.0,86858.0,0.39050608]
[1764639641954,0.00174838,86859.0,86858.0,0.1602452]
[1764639642184,0.00174838,86859.0,86858.0,0.1612452]
[1764639642602,0.00174838,86859.0,86858.0,0.1632452]
[1764639643003,0.00174838,86859.0,86858.0,0.15175]
[1764639644157,0.00174838,86859.0,86858.0,0.15075]
[1764639644371,0.00174838,86859.0,86858.0,0.1622452]
[1764639644582,0.00174838,86859.0,86858.0,0.1602452]
[1764639645054,0.00174838,86859.0,86858.0,0.14975]
[1764639645221,0.00174838,86859.0,86858.0,0.1602452]
[1764639645662,0.00174838,86859.0,86858.0,0.1632452]
[1764639646875,0.00174838,86859.0,86858.0,0.13351]
[1764639647069,0.00174838,86859.0,86858.0,0.15175]
[1764639647691,0.00174838,86859.0,86858.0,0.15075]
[1764639647889,0.00174838,86859.0,86858.0,0.14875]
[1764639648090,0.00174838,86859.0,86858.0,0.13051]
[1764639648294,0.00174838,86859.0,86858.0,0.001]
[1764639648880,0.23026088,86858.0,86857.0,0.01824]
[1764639649431,0.23026088,86858.0,86857.0,0.14958]
[1764639649836,0.23026088,86858.0,86857.0,0.01824]
[1764639650036,0.23026883,86855.0,86854.0,0.04125]
[1764639650259,0.23027679,86852.0,86851.0,0.01824]
[1764639650468,0.23029535,86845.0,86837.0,0.08019]
[1764639650623,0.23029535,86845.0,86843.0,0.01824]
[1764639650624,0.230298,86844.0,86843.0,0.01824]
[1764639651149,0.230298,86844.0,86843.0,0.06939]
[1764639651773,0.230298,86844.0,86839.0,0.12274884]
[1764639651774,0.23030861,86840.0,86839.0,0.01928884]
[1764639651975,0.23030861,86840.0,86839.0,0.00104884]
[1764639652355,0.23030861,86840.0,86839.0,0.05119884]
[1764639652868,0.23030861,86840.0,86839.0,0.13138884]
[1764639653458,0.23030861,86840.0,86839.0,4.884e-05]
[1764639653890,0.23030861,86840.0,86839.0,0.00104884]
[1764639655228,0.23030861,86840.0,86839.0,4.884e-05]
[1764639655403,0.23030861,86840.0,86839.0,0.05119884]
[1764639655830,0.23030861,86840.0,86839.0,4.884e-05]
[1764639656031,0.23110861,86840.0,86839.0,4.884e-05]
[1764639656233,0.63358861,86840.0,86839.0,4.884e-05]
[1764639656453,0.66984713,86840.0,86839.0,4.884e-05]
[1764639657013,0.73237012,86840.0,86839.0,4.884e-05]
[1764639658116,0.57090139,86840.0,86839.0,4.884e-05]
[1764639661556,2.71594816,86840.0,86839.0,4.884e-05]
[1764639661721,0.56488289,86812.0,86806.0,0.03958]
[1764639661930,0.56567289,86812.0,86811.0,0.00063875]
[1764639662341,0.55338289,86812.0,86811.0,0.00063875]
[1764639664552,0.55338289,86812.0,86811.0,0.00263875]
[1764639664759,0.23038289,86812.0,86811.0,0.05378875]
[1764639664973,0.23038289,86812.0,86811.0,0.13397875]
[1764639666371,0.23038289,86812.0,86811.0,0.05378875]
[1764639666577,0.23038289,86812.0,86811.0,0.00263875]
[1764639666578,0.31319289,86812.0,86811.0,0.00263875]
[1764639666743,0.32469289,86812.0,86811.0,0.00263875]
[1764639667148,0.38721588,86812.0,86811.0,0.00263875]
[1764639667356,0.23046519,86781.0,86780.0,0.01824]
[1764639667627,0.27633728,86781.0,86780.0,4.885e-05]
[1764639667847,0.31064728,86781.0,86780.0,4.885e-05]
[1764639668207,0.27633728,86781.0,86780.0,4.885e-05]
[1764639669901,0.27633728,86781.0,86780.0,0.00204885]
[1764639670351,0.04587209,86781.0,86780.0,0.00204885]
[1764639670930,0.27633728,86781.0,86780.0,0.00204885]
[1764639672890,0.27633728,86781.0,86780.0,0.00302944]
[1764639674444,0.27633728,86781.0,86780.0,0.18107944]
[1764639674644,0.27633728,86781.0,86780.0,0.09788944]
[1764639674853,0.27633728,86781.0,86780.0,0.18107944]
[1764639675058,0.27633728,86781.0,86780.0,0.09788944]
[1764639675252,0.27633728,86781.0,86780.0,0.18107944]
[1764639675897,0.27633728,86781.0,86780.0,0.17907944]
[1764639676350,0.27633728,86781.0,86780.0,0.09788944]
[1764639676529,0.27633728,86781.0,86780.0,0.00302944]
[1764639676780,0.27852728,86781.0,86780.0,0.00302944]
[1764639676972,0.27633728,86781.0,86780.0,0.00302944]
[1764639677496,0.27633728,86781.0,86780.0,0.00102944]
[1764639677861,0.23046519,86781.0,86780.0,0.14009944]
[1764639678265,0.23046519,86781.0,86780.0,0.00202944]
[1764639678881,0.24198511,86783.0,86780.0,0.00202944]
[1764639679083,0.23046519,86781.0,86780.0,4.885e-05]
[1764639679313,0.23046519,86781.0,86780.0,0.04002885]
[1764639679576,0.24198511,86783.0,86780.0,0.04300944]
[1764639679778,0.24198511,86783.0,86782.0,0.05488]
[1764639679974,0.2304651,86782.0,86780.0,0.04202885]
[1764639680383,0.2304651,86782.0,86781.0,0.00094894]
[1764639680788,0.2807551,86782.0,86781.0,0.00094894]
[1764639681211,0.3132751,86782.0,86781.0,0.00094894]
[1764639682376,0.3132751,86782.0,86781.0,0.00294894]
[1764639682774,0.3132751,86782.0,86781.0,0.00094894]
[1764639682972,0.3132751,86782.0,86781.0,0.00294894]
[1764639683173,0.2304651,86782.0,86781.0,0.00294894]
[1764639683818,0.2304651,86782.0,86781.0,0.00094894]
[1764639684218,0.2304651,86782.0,86781.0,0.00294894]
[1764639684780,0.2304651,86782.0,86781.0,0.05782894]
[1764639685345,0.2304651,86782.0,86781.0,0.14101894]
[1764639685547,0.2304651,86782.0,86781.0,0.05782894]
[1764639685750,0.3304651,86782.0,86781.0,0.00294894]
[1764639686156,0.3304651,86782.0,86781.0,0.14101894]
[1764639688508,0.3304651,86782.0,86781.0,0.00294894]
[1764639689496,0.3304651,86782.0,86781.0,0.05782894]
[1764639689908,0.17141531,86782.0,86781.0,0.05782894]
[1764639690322,0.17141531,86782.0,86781.0,0.13744894]
[1764639690733,0.17141531,86782.0,86781.0,0.05782894]
[1764639691440,0.17141531,86782.0,86781.0,0.00294894]
[1764639693292,0.1,86782.0,86781.0,0.13485894]
[1764639695998,0.33046253,86782.0,86781.0,0.13485894]
[1764639696199,0.1,86782.0,86781.0,0.13485894]
[1764639696621,0.1,86782.0,86781.0,0.36532413]
[1764639697031,0.1,86782.0,86781.0,0.37681933]
[1764639697470,0.08914,86782.0,86781.0,0.37681933]
[1764639697639,0.08914,86782.0,86781.0,0.36532413]
[1764639698246,0.08914,86782.0,86781.0,0.36632413]
[1764639698430,0.08914,86782.0,86781.0,0.37581933]
[1764639698660,0.08914,86782.0,86781.0,0.38181933]
[1764639699469,0.08914,86782.0,86781.0,0.37032413]
[1764639699668,0.08914,86782.0,86781.0,0.38856413]
[1764639699954,0.08914,86782.0,86781.0,0.37032413]
[1764639700160,0.08914,86782.0,86781.0,0.38856413]
[1764639700766,0.08914,86782.0,86781.0,0.38756413]
[1764639701103,0.08914,86782.0,86781.0,0.39405933]
[1764639701455,0.08914,86782.0,86781.0,0.39705933]
[1764639701675,0.08914,86782.0,86781.0,0.39305933]
[1764639701843,0.08914,86782.0,86781.0,0.39405933]
[1764639702042,0.08914,86782.0,86781.0,0.39905933]
[1764639702786,0.08914,86782.0,86781.0,0.15709894]
[1764639702977,0.08914,86782.0,86781.0,0.13885894]
[1764639703247,0.08914,86782.0,86781.0,0.15709894]
[1764639703820,0.08914,86782.0,86781.0,0.15609894]
[1764639704028,0.08914,86782.0,86781.0,0.15709894]
[1764639704463,0.13501209,86782.0,86781.0,0.07247894]
[1764639704775,0.13501209,86782.0,86781.0,0.16108894]
[1764639704974,0.13501209,86782.0,86781.0,0.15608894]
[1764639705460,0.04587209,86782.0,86781.0,0.16108894]
[1764639705639,0.04587209,86782.0,86781.0,0.07647894]
[1764639706397,0.04587209,86782.0,86781.0,0.02418894]
[1764639706794,0.04587209,86782.0,86781.0,0.02318894]
[1764639707000,0.04587209,86782.0,86781.0,0.02418894]
[1764639707408,0.04587209,86782.0,86781.0,0.01918894]
[1764639707610,0.04587209,86782.0,86781.0,0.02118894]
[1764639708008,0.04587209,86782.0,86781.0,0.01918894]
[1764639708213,0.04587209,86782.0,86781.0,0.07216894]
[1764639708720,0.04587209,86782.0,86781.0,0.07316894]
[1764639709243,0.04587209,86782.0,86781.0,0.07216894]
[1764639709955,0.04587209,86782.0,86781.0,0.07316894]
[1764639710757,0.04587209,86782.0,86781.0,0.07516894]
[1764639715775,0.04662209,86782.0,86781.0,0.00394894]
[1764639715977,0.05812209,86782.0,86781.0,0.00394894]
[1764639716904,0.05812209,86782.0,86781.0,0.00294894]
[1764639717334,0.05812209,86782.0,86781.0,0.00094894]
[1764639718135,0.05812209,86782.0,86781.0,0.00194894]
[1764639718996,0.13246209,86782.0,86781.0,0.00194894]
[1764639719214,0.46883924,86782.0,86781.0,0.00194894]
[1764639719417,0.48033924,86782.0,86781.0,0.00194894]
[1764639720478,0.5955652,86782.0,86781.0,0.00194894]
[1764639720695,0.80560223,86782.0,86781.0,0.00194894]
[1764639721638,0.80560223,86782.0,86781.0,0.00094894]
[1764639722374,0.80760223,86782.0,86781.0,0.00094894]
[1764639722649,0.80560223,86782.0,86781.0,0.00094894]
[1764639723067,0.0115,86761.0,86749.0,0.01824]
[1764639723212,0.36963209,86761.0,86760.0,0.00024888]
[1764639723554,0.45759209,86761.0,86760.0,0.00024888]
[1764639724109,0.44609209,86761.0,86760.0,0.00024888]
[1764639724297,0.45759209,86761.0,86760.0,0.00024888]
[1764639724519,0.45759209,86761.0,86760.0,0.00124888]
[1764639724727,0.45759209,86761.0,86760.0,0.00024888]
[1764639724728,0.60107455,86761.0,86760.0,0.00024888]
[1764639725194,0.60107455,86761.0,86760.0,0.00124888]
[1764639725421,0.54493815,86761.0,86760.0,0.00124888]
[1764639727017,0.54493815,86761.0,86760.0,0.00024888]
[1764639727341,0.54593815,86761.0,86760.0,0.00024888]
[1764639727604,0.54493815,86761.0,86760.0,0.00024888]
[1764639728091,0.54593815,86761.0,86760.0,0.00024888]
[1764639728440,0.62887223,86761.0,86760.0,0.00024888]
[1764639728636,0.62887223,86761.0,86760.0,0.00091342]
[1764639729083,0.61737223,86761.0,86760.0,0.00091342]
[1764639729379,0.87337223,86761.0,86760.0,0.00091342]
[1764639729601,0.55037223,86761.0,86760.0,0.00091342]
[1764639730079,0.45593815,86761.0,86760.0,0.00091342]
[1764639730290,0.46743815,86761.0,86760.0,0.00091342]
[1764639731613,0.79043815,86761.0,86760.0,0.00091342]
[1764639733178,0.79043815,86761.0,86729.0,0.04163]
[1764639733179,0.23060071,86730.0,86729.0,0.04163]
[1764639733429,0.23136071,86730.0,86729.0,0.00038451]
[1764639734506,0.24286071,86730.0,86729.0,0.00438451]
[1764639734707,0.24210071,86730.0,86729.0,0.00438451]
[1764639734881,0.24210071,86730.0,86729.0,0.00538451]
[1764639734882,0.23060071,86730.0,86729.0,0.00538451]
[1764639735299,0.24212242,86733.0,86729.0,0.13501451]
[1764639735452,0.01152963,86733.0,86732.0,0.05288]
[1764639735659,0.23057238,86741.0,86732.0,0.2950045]
[1764639735865,0.01152817,86744.0,86741.0,0.05288]
[1764639736063,0.0115279,86746.0,86744.0,0.05288]
[1764639736263,0.0115283,86743.0,86740.0,0.08175]
[1764639736507,0.01152804,86745.0,86741.0,0.08175]
[1764639736849,0.01152817,86744.0,86741.0,0.08175]
[1764639737073,0.23056881,86742.0,86741.0,0.08175]
[1764639737423,0.23056881,86742.0,86741.0,0.13463]
[1764639737636,0.28796616,86744.0,86741.0,0.13463]
[1764639737831,0.28796616,86744.0,86743.0,0.05288]
[1764639738035,0.24208077,86748.0,86743.0,0.0644083]
[1764639738234,0.01152777,86747.0,86744.0,0.08175]
[1764639738438,0.01152724,86751.0,86748.0,0.05288]
[1764639738663,0.01152658,86756.0,86750.0,0.09575]
[1764639738837,0.24205844,86756.0,86755.0,0.05288]
[1764639739359,0.24205844,86756.0,86755.0,0.13463]
[1764639740583,0.24205844,86756.0,86755.0,0.13863]
[1764639741192,0.24205844,86756.0,86755.0,0.05288]
[1764639741443,0.24205844,86756.0,86755.0,0.001]
[1764639741594,0.64341144,86756.0,86755.0,0.004]
[1764639741807,0.57733844,86756.0,86755.0,0.003]
[1764639742008,0.65481844,86756.0,86755.0,0.003]
[1764639742316,0.67961371,86756.0,86755.0,0.003]
[1764639742482,0.73923465,86756.0,86755.0,0.003]
[1764639742858,0.56503957,86753.0,86752.0,0.00025321]
[1764639743061,0.59060484,86753.0,86752.0,0.00025321]
[1764639743598,0.58983484,86753.0,86752.0,0.00025321]
[1764639745366,0.59137484,86753.0,86752.0,0.00025321]
[1764639746816,0.66810484,86753.0,86752.0,0.00025321]
[1764639747367,0.59137484,86753.0,86752.0,0.00025321]
[1764639747943,0.8143746,86753.0,86752.0,0.00025321]
[1764639748109,0.7718308,86753.0,86752.0,0.00025321]
[1764639748350,0.58983484,86753.0,86752.0,0.00025321]
[1764639748697,0.59061484,86753.0,86752.0,0.00025321]
[1764639749087,0.60940234,86753.0,86752.0,0.00025321]
[1764639749482,0.57833484,86753.0,86752.0,0.00025321]
[1764639750497,0.57911484,86753.0,86752.0,0.00025321]
[1764639750700,0.59061484,86753.0,86752.0,0.00025321]
[1764639751621,0.58983484,86753.0,86752.0,0.00025321]
[1764639751828,0.28642495,86753.0,86752.0,0.13605321]
[1764639752058,0.25533484,86753.0,86752.0,0.13605321]
[1764639752275,0.01152671,86755.0,86752.0,0.13605321]
[1764639752468,0.057398,86761.0,86754.0,0.06651684]
[1764639752645,0.01152604,86760.0,86755.0,0.01828]
[1764639752843,0.24205474,86758.0,86755.0,0.09909]
[1764639753052,0.2305316,86756.0,86755.0,0.09909]
[1764639753604,0.2305316,86756.0,86755.0,0.15408]
[1764639754187,0.2305316,86756.0,86755.0,0.15708]
[1764639755386,0.24205474,86758.0,86755.0,0.15708]
[1764639755550,0.24205474,86758.0,86755.0,0.02128]
[1764639755747,0.24205474,86758.0,86757.0,0.05777]
[1764639756285,0.24205474,86758.0,86757.0,0.13832]
[1764639756875,0.24205474,86758.0,86757.0,0.13836445]
[1764639757310,0.24205474,86758.0,86757.0,0.13936445]
[1764639757875,0.03109011,86786.0,86782.0,0.01152312]
[1764639758080,0.01152166,86793.0,86785.0,0.09769]
[1764639758393,0.01152166,86793.0,86790.0,0.03992]
[1764639758596,0.01152166,86793.0,86792.0,0.05777]
[1764639758917,0.04587209,86794.0,86792.0,0.05777]
[1764639759119,0.00162351,86796.0,86793.0,0.13832]
[1764639759341,0.00162351,86796.0,86795.0,0.13732]
[1764639759541,0.00162351,86796.0,86795.0,0.1670952]
[1764639760499,0.00162351,86796.0,86795.0,0.1690952]
[1764639760809,0.00162351,86796.0,86795.0,0.1700952]
[1764639762077,0.00162351,86796.0,86795.0,0.1586]
[1764639762845,0.00162351,86796.0,86795.0,0.1556]
[1764639763047,0.00162351,86796.0,86795.0,0.1566]
[1764639763212,0.00162351,86796.0,86795.0,0.1596]
[1764639763410,0.00162351,86796.0,86795.0,0.15656]
[1764639763615,0.00162351,86796.0,86795.0,0.13732]
[1764639763839,0.00162351,86796.0,86795.0,0.07901]
[1764639764921,0.00162351,86796.0,86795.0,0.07501]
[1764639765361,0.00162351,86796.0,86795.0,0.02124]
[1764639765570,0.01312351,86796.0,86795.0,0.003]
[1764639766199,0.00162351,86796.0,86795.0,0.003]
[1764639768954,0.32462351,86796.0,86795.0,0.003]
[1764639769273,0.32462351,86796.0,86795.0,0.002]
[1764639769476,0.323,86794.0,86792.0,4.445e-05]
[1764639769693,0.04381,86793.0,86792.0,4.445e-05]
[1764639770247,0.59724332,86793.0,86792.0,4.445e-05]
[1764639770800,0.58546332,86793.0,86792.0,4.445e-05]
[1764639771140,0.55343332,86793.0,86792.0,4.445e-05]
[1764639772318,0.55424332,86793.0,86792.0,4.445e-05]
[1764639772528,0.55343332,86793.0,86792.0,4.445e-05]
[1764639772984,0.55424332,86793.0,86792.0,4.445e-05]
[1764639773197,0.55343332,86793.0,86792.0,4.445e-05]
[1764639775340,0.55343332,86793.0,86792.0,0.05781445]
[1764639775747,0.55343332,86793.0,86792.0,4.445e-05]
[1764639777651,0.38617814,86793.0,86792.0,4.445e-05]
[1764639778091,0.58082113,86793.0,86792.0,4.445e-05]
[1764639778291,0.47882814,86793.0,86792.0,4.445e-05]
[1764639778545,0.38617814,86793.0,86792.0,4.445e-05]
[1764639780154,0.38698814,86793.0,86792.0,4.445e-05]
[1764639781171,0.38617814,86793.0,86792.0,4.445e-05]
[1764639781394,0.38617814,86793.0,86792.0,0.13836445]
[1764639781609,0.38617814,86793.0,86792.0,0.05781445]
[1764639781767,0.38617814,86793.0,86792.0,4.445e-05]
[1764639781970,0.38698814,86793.0,86792.0,4.445e-05]
[1764639782173,0.47882814,86793.0,86792.0,4.445e-05]
[1764639782578,0.50363906,86793.0,86792.0,4.445e-05]
[1764639782782,0.81066205,86793.0,86792.0,4.445e-05]
[1764639787631,0.23051566,86762.0,86761.0,0.04033]
[1764639787851,0.27648094,86762.0,86761.0,0.04033]
[1764639788072,0.27648094,86762.0,86757.0,0.05816]
[1764639788073,0.23052629,86758.0,86757.0,0.05816]
[1764639788491,0.23052629,86758.0,86757.0,0.11198]
[1764639789330,0.23052629,86758.0,86757.0,0.11498]
[1764639790428,0.23052629,86758.0,86757.0,0.11298]
[1764639790634,0.23052629,86758.0,86757.0,0.09474]
[1764639790855,0.23052629,86758.0,86757.0,0.09574]
[1764639791071,9.319e-05,86762.0,86757.0,0.18073]
[1764639791272,0.01152604,86760.0,86758.0,0.08399]
[1764639791530,0.01152604,86760.0,86757.0,0.04292]
[1764639791531,0.28792117,86760.0,86757.0,0.04292]
[1764639791747,0.55352629,86758.0,86757.0,0.003]
[1764639791940,0.55352629,86758.0,86757.0,0.002]
[1764639791941,0.57352629,86758.0,86757.0,0.002]
[1764639792114,0.23053957,86753.0,86752.0,0.00025321]
[1764639792483,0.23053957,86753.0,86752.0,0.05407321]
[1764639794070,0.23053957,86753.0,86752.0,0.05507321]
[1764639794231,0.23053957,86753.0,86752.0,0.13906321]
[1764639794556,0.23053957,86753.0,86752.0,0.14106321]
[1764639794953,0.23053957,86753.0,86752.0,0.05707321]
[1764639795257,0.23053957,86753.0,86752.0,0.14106321]
[1764639797270,0.23053957,86753.0,86752.0,0.05707321]
[1764639797776,0.23053957,86753.0,86752.0,0.14106321]
[1764639797982,0.23053957,86753.0,86752.0,0.05707321]
[1764639798350,0.23053957,86753.0,86752.0,0.14106321]
[1764639798759,0.23053957,86753.0,86752.0,0.00325321]
[1764639798760,0.23227957,86753.0,86752.0,0.00325321]
[1764639798977,0.56503957,86753.0,86752.0,0.00325321]
[1764639799606,0.55353957,86753.0,86752.0,0.00325321]
[1764639799755,0.56503957,86753.0,86752.0,0.00025321]
[1764639799951,0.55527957,86753.0,86752.0,0.00025321]
[1764639800222,0.59160559,86753.0,86752.0,0.00025321]
[1764639800418,0.56677957,86753.0,86752.0,0.00025321]
[1764639800846,0.55353957,86753.0,86752.0,0.05407321]
[1764639801428,0.55353957,86753.0,86752.0,0.13806321]
[1764639801605,0.02,86758.0,86752.0,0.13806321]
[1764639801951,0.02,86758.0,86757.0,0.05382]
[1764639802149,0.02,86758.0,86757.0,0.07206]
[1764639802290,0.02,86758.0,86757.0,0.15605]
[1764639803607,0.02,86758.0,86757.0,0.15705]
[1764639804003,0.25052629,86758.0,86757.0,0.003]
[1764639804157,0.25052629,86758.0,86757.0,0.05482]
[1764639804360,0.25052629,86758.0,86757.0,0.14081]
[1764639804800,0.25052629,86758.0,86757.0,0.13881]
[1764639805393,0.25052629,86758.0,86757.0,0.13981]
[1764639805795,0.57352629,86758.0,86757.0,0.002]
[1764639806009,0.58676629,86758.0,86757.0,0.002]
[1764639806561,0.23053957,86753.0,86752.0,0.01849321]
[1764639807197,0.23302957,86753.0,86752.0,0.01849321]
[1764639807423,0.55353957,86753.0,86752.0,0.01849321]
[1764639807637,0.55353957,86753.0,86752.0,0.07231321]
[1764639808076,0.55353957,86753.0,86752.0,0.02049321]
[1764639809094,0.55353957,86753.0,86752.0,0.02149321]
[1764639809330,0.55353957,86753.0,86752.0,0.01949321]